bitfinex/quotes_ETHUSD_20251125
["timestamp","ask_amount","ask_price","bid_price","bid_amount"]
[1764095594086,0.1512,2959.5,2959.4,3.61282074]
[1764095594572,0.1512,2959.5,2958.9,5.16300024]
[1764095594880,0.1512,2959.5,2959.0,6.7590402]
[1764095595088,0.6039,2959.5,2959.0,6.7590402]
[1764095595486,0.4527,2959.4,2959.0,6.7590402]
[1764095595693,0.0045,2959.1,2959.0,3.3795201]
[1764095596068,0.4527,2959.4,2958.9,6.75921182]
[1764095596960,0.6431,2959.6,2958.9,0.4685]
[1764095597160,0.6431,2959.6,2958.7,10.60806111]
[1764095597361,0.4558,2959.5,2958.7,6.75969834]
[1764095598290,0.4558,2959.5,2958.7,10.13956111]
[1764095601462,0.6453,2959.6,2958.8,0.869404]
[1764095601662,0.6453,2959.6,2958.8,0.405504]
[1764095601861,0.458,2959.5,2958.8,0.405504]
[1764095603095,0.149,2958.9,2958.5,6.76016751]
[1764095603503,0.149,2958.9,2958.5,7.22406751]
[1764095603798,0.458,2959.5,2958.8,0.4776]
[1764095605208,0.458,2959.5,2958.9,6.75926864]
[1764095606264,0.1495,2959.0,2958.9,3.37963432]
[1764095607081,0.6044,2959.0,2958.9,3.37963432]
[1764095607423,0.6044,2959.0,2958.5,10.14025877]
[1764095607424,0.1495,2959.0,2958.5,10.14025877]
[1764095607582,0.0045,2958.9,2958.5,10.14025877]
[1764095607901,0.4549,2959.3,2958.8,0.4776]
[1764095608401,0.1873,2959.6,2959.2,0.4776]
[1764095608782,0.4018,2959.8,2959.2,1.1245]
[1764095609181,0.15,2959.3,2959.0,6.7590402]
[1764095609373,0.458,2959.7,2959.0,10.1385603]
[1764095609573,0.15,2959.1,2959.0,3.7850241]
[1764095609775,0.458,2959.7,2959.0,10.5440643]
[1764095609975,0.458,2959.6,2959.0,10.5440643]
[1764095611508,0.15,2959.1,2959.0,3.7850241]
[1764095612074,0.1531,2959.1,2959.0,3.7850241]
[1764095613920,0.1531,2959.1,2958.6,0.001]
[1764095613921,0.605,2959.1,2958.6,0.001]
[1764095614135,0.3416,2958.7,2958.6,0.001]
[1764095614487,0.7918,2958.7,2958.6,0.001]
[1764095615114,1.32333853,2958.7,2958.6,0.001]
[1764095615329,1.0068,2958.7,2958.6,0.001]
[1764095617335,5.42850792,2958.7,2958.6,0.001]
[1764095617500,6.29248824,2958.7,2958.6,0.001]
[1764095617829,6.29250156,2958.7,2958.6,0.001]
[1764095618323,5.56397095,2958.7,2958.6,0.001]
[1764095619829,11.93397095,2958.7,2958.6,0.001]
[1764095621322,11.93326303,2958.7,2958.6,0.001]
[1764095622719,11.93315863,2958.7,2958.6,0.001]
[1764095627727,11.93282282,2958.7,2958.6,0.001]
[1764095630498,11.93482282,2958.7,2958.6,0.001]
[1764095630702,7.14303111,2958.6,2958.5,0.001]
[1764095630911,2.18040102,2958.6,2958.5,0.001]
[1764095631237,2.12537565,2958.6,2958.5,0.001]
[1764095631626,0.259,2958.6,2958.5,0.001]
[1764095631933,0.474,2958.6,2958.5,0.001]
[1764095632814,4.32697701,2958.6,2958.5,0.001]
[1764095633839,0.215,2958.6,2958.5,0.9539]
[1764095634135,0.215,2958.6,2958.5,0.4905]
[1764095634434,0.215,2958.6,2958.5,0.9539]
[1764095634647,0.215,2958.6,2958.5,4.33399126]
[1764095636135,0.215,2958.6,2958.5,3.87059126]
[1764095636537,0.215,2958.6,2958.5,4.33399126]
[1764095638815,0.002,2958.7,2958.5,4.33399126]
[1764095639129,0.217,2958.7,2958.6,0.9529]
[1764095640835,0.217,2958.7,2958.6,4.33287701]
[1764095642642,0.217,2958.7,2958.6,0.9529]
[1764095642854,0.3189,2958.7,2958.5,0.001]
[1764095643056,0.1028,2958.6,2958.5,0.001]
[1764095643350,1.1442267,2958.6,2958.5,0.001]
[1764095643552,8.0086267,2958.6,2958.5,0.001]
[1764095643753,8.73696156,2958.6,2958.5,0.001]
[1764095645441,12.11693857,2958.6,2958.5,0.001]
[1764095646241,12.25241628,2958.6,2958.5,0.001]
[1764095646443,12.65792028,2958.6,2958.5,0.001]
[1764095646645,14.29592211,2958.5,2958.4,0.001]
[1764095646856,7.65211111,2958.4,2958.3,0.001]
[1764095647043,10.20325658,2958.4,2958.3,0.001]
[1764095647258,7.71605658,2958.4,2958.3,0.001]
[1764095647642,10.94622709,2958.4,2958.3,0.001]
[1764095648043,6.15177107,2958.4,2958.3,0.001]
[1764095648670,32.96362686,2958.4,2957.8,0.001]
[1764095648828,0.2935,2957.9,2957.8,0.001]
[1764095649033,1.55266745,2957.9,2957.8,0.001]
[1764095649337,0.82433259,2957.9,2957.8,0.001]
[1764095649543,4.20510949,2957.9,2957.8,0.001]
[1764095649742,1.2564267,2957.9,2957.8,0.001]
[1764095650444,1.2564267,2957.9,2957.8,0.498]
[1764095651361,1.2564267,2957.9,2957.8,0.9691]
[1764095651534,0.215,2957.9,2957.8,0.9691]
[1764095651862,0.215,2957.9,2957.8,4.3499912]
[1764095653054,0.215,2957.9,2957.8,0.9691]
[1764095653255,0.215,2957.9,2957.8,0.498]
[1764095654238,0.215,2957.9,2957.8,0.001]
[1764095654433,0.215,2957.9,2957.8,0.498]
[1764095654863,0.215,2957.9,2957.8,4.3499912]
[1764095655875,6.37,2958.4,2957.8,4.3499912]
[1764095656068,0.215,2958.3,2957.9,0.4711]
[1764095656569,0.215,2958.3,2958.2,0.6815]
[1764095657035,0.215,2958.3,2958.2,1.1526]
[1764095658568,0.215,2958.3,2958.2,4.53303404]
[1764095659281,0.215,2958.3,2958.2,1.1526]
[1764095659663,0.215,2958.3,2958.2,0.6815]
[1764095659864,0.215,2958.3,2958.2,0.497]
[1764095660293,0.215,2958.3,2958.2,4.35663404]
[1764095660670,0.215,2958.3,2958.2,0.9762]
[1764095660867,0.215,2958.3,2958.2,0.497]
[1764095661291,0.4708,2958.3,2958.0,3.38063404]
[1764095661487,0.215,2958.3,2958.2,0.4878]
[1764095661881,0.215,2958.3,2958.2,0.967]
[1764095662496,0.215,2958.3,2958.2,4.34743404]
[1764095663501,0.215,2958.3,2958.2,0.967]
[1764095663705,0.215,2958.3,2958.2,0.4878]
[1764095664000,0.9434,2958.3,2957.8,0.001]
[1764095664302,0.4708,2958.3,2957.8,0.4802]
[1764095664476,3.85111983,2958.3,2957.8,0.4802]
[1764095664796,0.9434,2958.3,2957.8,3.86108482]
[1764095665014,4.32374586,2958.3,2957.8,0.4802]
[1764095665468,0.215,2958.3,2957.8,3.86107099]
[1764095665672,3.59532202,2958.3,2957.8,0.4802]
[1764095665974,3.59532202,2958.3,2957.8,3.86107191]
[1764095666190,0.215,2958.3,2958.1,0.001]
[1764095666483,0.215,2958.3,2958.2,0.4878]
[1764095667003,0.4708,2958.3,2958.1,0.001]
[1764095667878,0.215,2958.3,2958.2,0.4878]
[1764095668070,0.53105404,2958.3,2958.2,0.4878]
[1764095668476,0.215,2958.3,2958.2,4.34743404]
[1764095669174,0.215,2958.3,2958.2,0.4878]
[1764095670086,0.4708,2958.3,2958.1,0.001]
[1764095670281,0.0047,2958.2,2958.1,0.001]
[1764095670923,0.79573435,2958.2,2958.1,0.001]
[1764095671674,1.52132846,2958.2,2958.1,0.001]
[1764095672604,4.9017625,2958.2,2958.1,0.001]
[1764095673313,4.4269625,2958.2,2958.1,0.001]
[1764095673480,4.4222625,2958.2,2958.1,0.001]
[1764095673682,4.6780625,2958.2,2958.1,0.001]
[1764095674305,5.1506625,2958.2,2958.1,0.001]
[1764095674708,0.217,2958.5,2958.1,1.1622]
[1764095675008,0.217,2958.5,2958.1,0.001]
[1764095675309,0.4994,2958.2,2958.1,0.001]
[1764095675812,0.8158857,2958.2,2958.1,0.001]
[1764095676312,0.3164857,2958.2,2958.1,1.1622]
[1764095676485,3.59710562,2958.5,2958.1,1.1622]
[1764095676486,0.3164857,2958.4,2958.1,1.1622]
[1764095676709,0.217,2958.5,2958.4,0.4878]
[1764095676912,0.78926149,2958.5,2958.1,0.1952]
[1764095677114,0.9454,2958.5,2958.1,0.001]
[1764095677306,0.31647053,2958.4,2958.1,0.001]
[1764095677631,0.217,2958.5,2958.4,0.4878]
[1764095677832,0.217,2958.5,2958.2,0.4792]
[1764095677833,0.53354249,2958.5,2958.1,3.57574625]
[1764095678033,0.31654249,2958.4,2958.1,3.57574625]
[1764095678336,0.217,2958.5,2958.1,4.05494625]
[1764095678536,0.31661071,2958.4,2958.1,3.57574625]
[1764095678837,0.217,2958.5,2958.1,0.001]
[1764095679002,0.31661072,2958.4,2958.1,0.001]
[1764095679206,0.6918,2958.5,2958.1,0.001]
[1764095679207,0.31672907,2958.3,2958.1,3.38154347]
[1764095679526,0.6918,2958.5,2958.1,3.38154347]
[1764095679527,0.217,2958.5,2958.1,3.38154347]
[1764095679703,0.316731,2958.4,2958.1,3.38154347]
[1764095680003,0.316731,2958.3,2958.1,3.38154347]
[1764095680199,0.217,2958.5,2958.1,0.001]
[1764095680546,0.31681323,2958.4,2958.1,3.37771562]
[1764095680754,0.31681323,2958.3,2958.0,3.3806626]
[1764095681039,0.217,2958.5,2958.0,3.3806626]
[1764095681236,0.31681332,2958.4,2958.0,3.8598626]
[1764095681439,0.31681332,2958.3,2958.0,3.8598626]
[1764095681640,0.217,2958.5,2958.0,7.2405252]
[1764095681929,0.3169088,2958.4,2958.0,6.7613252]
[1764095682137,0.3169088,2958.3,2958.0,7.2405252]
[1764095682320,0.217,2958.5,2958.4,0.4878]
[1764095682521,0.53392393,2958.5,2958.4,0.4878]
[1764095682733,0.53392393,2958.5,2958.4,0.967]
[1764095683307,0.53392393,2958.5,2958.4,0.4878]
[1764095684102,0.78972393,2958.5,2958.0,3.3806626]
[1764095684318,0.31692393,2958.4,2958.0,6.7613252]
[1764095684568,0.215,2958.3,2958.1,0.6734]
[1764095684866,0.215,2958.3,2958.2,3.38043404]
[1764095685051,0.215,2958.3,2958.2,3.86823404]
[1764095685355,1.03130843,2958.3,2958.0,0.001]
[1764095685561,0.31690843,2958.2,2958.0,3.38165507]
[1764095685733,0.7144,2958.3,2958.0,0.001]
[1764095685932,0.31694743,2958.2,2958.0,0.001]
[1764095686254,0.215,2958.3,2958.0,0.001]
[1764095686552,0.31694843,2958.2,2958.0,0.001]
[1764095686717,0.215,2958.3,2958.0,0.001]
[1764095686922,0.31694849,2958.2,2958.0,0.001]
[1764095687256,0.4967,2958.1,2958.0,0.001]
[1764095687555,1.04775536,2958.1,2958.0,0.001]
[1764095689275,0.81365536,2958.1,2958.0,0.001]
[1764095689564,0.57275536,2958.1,2958.0,0.001]
[1764095689768,1.04535536,2958.1,2958.0,0.001]
[1764095689965,0.31695536,2958.1,2958.0,0.001]
[1764095690570,0.56345536,2958.1,2958.0,0.001]
[1764095691568,4.42580368,2958.1,2958.0,0.001]
[1764095691858,1.04525536,2958.1,2958.0,0.001]
[1764095692243,0.56345536,2958.1,2958.0,0.001]
[1764095693167,0.31695536,2958.1,2958.0,0.001]
[1764095693373,0.31695536,2958.1,2958.0,0.4606]
[1764095694064,0.56345536,2958.1,2958.0,0.001]
[1764095694265,0.31695536,2958.1,2958.0,0.001]
[1764095694580,0.56575536,2958.1,2958.0,0.001]
[1764095697094,3.94630368,2958.1,2958.0,0.001]
[1764095697799,0.56575536,2958.1,2958.0,0.001]
[1764095699303,3.94630368,2958.1,2958.0,0.001]
[1764095699461,0.56575536,2958.1,2958.0,0.001]
[1764095700165,3.94630368,2958.1,2958.0,0.001]
[1764095700373,4.41130368,2958.1,2958.0,0.001]
[1764095700574,3.94630368,2958.1,2958.0,0.001]
[1764095701068,3.69750368,2958.1,2958.0,0.4817]
[1764095701481,4.42600368,2958.1,2958.0,0.001]
[1764095703271,12.25164047,2958.1,2958.0,0.001]
[1764095704174,5.88164047,2958.1,2958.0,0.001]
[1764095704361,5.88364047,2958.1,2958.0,0.001]
[1764095704559,16.22514447,2958.1,2958.0,0.001]
[1764095704760,30.87596607,2958.1,2958.0,0.001]
[1764095704956,30.87596607,2958.1,2957.8,0.001]
[1764095704957,19.63202211,2958.0,2957.8,0.001]
[1764095705161,12.62668526,2957.9,2957.8,0.001]
[1764095705362,13.10508526,2957.9,2957.8,0.001]
[1764095705871,13.04688526,2957.9,2957.8,0.001]
[1764095706297,16.42766216,2957.9,2957.8,0.001]
[1764095706483,16.42766216,2957.9,2957.5,0.001]
[1764095706484,4.7009606,2957.7,2957.5,0.001]
[1764095706691,5.82214,2957.5,2956.4,0.001]
[1764095706897,0.4737,2957.1,2956.4,0.001]
[1764095707263,0.4784,2957.1,2956.4,0.001]
[1764095708163,0.4737,2957.1,2956.4,0.4896]
[1764095708498,4.58098563,2957.1,2956.4,0.4896]
[1764095708673,4.58568563,2957.1,2956.4,0.001]
[1764095709199,4.99118963,2957.1,2956.4,0.001]
[1764095709503,12.58949063,2957.1,2956.4,0.001]
[1764095709677,23.09753663,2957.1,2956.4,0.001]
[1764095710175,24.00882863,2957.1,2956.4,0.001]
[1764095710376,23.09753663,2957.1,2956.4,0.001]
[1764095712184,21.73981663,2957.1,2956.4,0.001]
[1764095712387,19.50056063,2957.1,2956.4,0.001]
[1764095712789,23.09753663,2957.1,2956.4,0.001]
[1764095713672,4.99118963,2957.1,2956.4,0.001]
[1764095713881,23.09753663,2957.1,2956.4,0.001]
[1764095714601,24.10882863,2957.1,2956.4,0.001]
[1764095714898,19.11472663,2957.1,2956.4,0.001]
[1764095715065,12.64708111,2956.8,2956.4,0.001]
[1764095715270,13.34738111,2956.8,2956.4,0.001]
[1764095715481,15.02024474,2956.8,2956.4,0.001]
[1764095715892,14.98465274,2956.8,2956.4,0.001]
[1764095716404,14.80541876,2956.8,2956.4,0.001]
[1764095716896,14.18491476,2956.8,2956.4,0.001]
[1764095717200,10.82710329,2956.8,2956.4,0.4896]
[1764095717400,10.10150918,2956.8,2956.4,0.4896]
[1764095717702,10.51239476,2956.8,2956.7,0.9703]
[1764095717897,10.51239476,2956.8,2956.7,0.4817]
[1764095718103,10.82709244,2956.8,2956.7,0.4817]
[1764095718296,10.51239476,2956.8,2956.7,0.4817]
[1764095718474,10.51239476,2956.8,2956.7,0.9703]
[1764095719408,10.51239476,2956.8,2956.7,0.4817]
[1764095720290,10.51239476,2956.8,2956.7,0.9425]
[1764095721109,10.51239476,2956.8,2956.7,0.4817]
[1764095721523,10.51239476,2956.8,2956.7,0.001]
[1764095722001,11.04799476,2956.8,2956.7,0.001]
[1764095722609,10.56029476,2956.8,2956.7,0.001]
[1764095722789,11.04799476,2956.8,2956.7,0.001]
[1764095723213,30.1258736,2956.8,2956.7,0.001]
[1764095723492,35.04867603,2956.8,2956.7,0.001]
[1764095723692,35.48928407,2956.8,2956.7,0.001]
[1764095724123,35.04867603,2956.8,2956.7,0.001]
[1764095724325,37.87827003,2956.8,2956.7,0.001]
[1764095724845,24.52030613,2956.7,2956.6,0.001]
[1764095725141,19.41989181,2956.7,2956.6,0.001]
[1764095725321,17.97041497,2956.7,2956.6,0.001]
[1764095725522,16.54817575,2956.7,2956.6,0.001]
[1764095725736,12.34766797,2956.7,2956.6,0.001]
[1764095725924,15.68707476,2956.7,2956.6,0.001]
[1764095726111,14.66329198,2956.7,2956.6,0.001]
[1764095726310,11.33691698,2956.7,2956.6,0.001]
[1764095726814,9.88573265,2956.7,2956.6,0.001]
[1764095727013,10.61132676,2956.7,2956.6,0.001]
[1764095727441,11.33730022,2956.7,2956.6,0.001]
[1764095727622,10.61132676,2956.7,2956.6,0.001]
[1764095728140,10.66362676,2956.7,2956.6,0.001]
[1764095728329,11.38963071,2956.7,2956.6,0.001]
[1764095728903,11.38963071,2956.7,2956.6,0.9175]
[1764095728904,0.31481762,2956.7,2956.6,0.9175]
[1764095729209,0.72559411,2956.7,2956.6,0.9175]
[1764095729405,1.04090302,2956.7,2956.6,0.9175]
[1764095729744,0.72559411,2956.7,2956.6,0.9175]
[1764095729941,0.72559411,2956.7,2956.6,0.4567]
[1764095729942,1.0408936,2956.7,2956.6,0.4567]
[1764095730143,4.42304261,2956.7,2956.6,0.4567]
[1764095730829,4.42304261,2956.7,2956.6,0.9175]
[1764095731026,4.42304261,2956.7,2956.6,0.4567]
[1764095731442,4.42304261,2956.7,2956.6,0.9175]
[1764095733156,4.42304261,2956.7,2956.6,0.4567]
[1764095734237,5.15206898,2956.7,2956.6,0.4567]
[1764095735056,5.15206898,2956.7,2956.6,0.001]
[1764095735772,5.19996898,2956.7,2956.6,0.001]
[1764095735950,5.15206898,2956.7,2956.6,0.001]
[1764095736464,5.20436898,2956.7,2956.6,0.001]
[1764095737268,5.68776898,2956.7,2956.6,0.001]
[1764095737771,6.5379482,2956.7,2956.6,0.001]
[1764095739037,5.15206898,2956.7,2956.6,0.001]
[1764095739378,5.15206898,2956.7,2956.6,0.4567]
[1764095739856,1.76991997,2956.7,2956.6,0.9175]
[1764095740063,1.04432586,2956.7,2956.6,0.9175]
[1764095740365,0.31729949,2956.7,2956.6,0.9175]
[1764095740975,0.31729949,2956.7,2956.6,4.29976341]
[1764095741276,0.002,2956.7,2956.6,4.29976341]
[1764095741497,0.002,2957.0,2956.6,11.46979423]
[1764095741791,0.002,2957.0,2956.9,0.4557]
[1764095742174,0.002,2957.0,2956.9,0.9165]
[1764095743249,0.002,2957.0,2956.9,4.29842025]
[1764095746077,0.002,2957.0,2956.9,0.9165]
[1764095750253,0.002,2957.0,2956.9,4.29842025]
[1764095753816,0.002,2957.0,2956.9,4.73774345]
[1764095753995,0.002,2957.5,2957.1,0.096]
[1764095754186,0.002,2957.5,2957.4,0.654]
[1764095754387,0.002,2957.5,2957.4,4.03534848]
[1764095754579,0.002,2957.5,2957.4,4.49064848]
[1764095756280,0.002,2957.5,2957.4,1.1093]
[1764095756480,0.002,2957.5,2957.4,4.49064848]
[1764095757291,0.002,2957.5,2957.4,1.1093]
[1764095757496,0.002,2957.5,2957.4,4.49064848]
[1764095759717,0.002,2957.5,2957.4,0.4698]
[1764095759901,0.002,2957.5,2957.4,0.9608]
[1764095763105,0.002,2957.5,2957.4,0.4698]
[1764095765493,0.0858,2957.5,2956.5,0.001]
[1764095765697,7.69569537,2957.5,2956.5,0.001]
[1764095766006,7.69569537,2957.5,2956.7,0.491]
[1764095766007,0.31576232,2957.4,2956.7,0.491]
[1764095766224,0.215,2957.3,2956.7,0.491]
[1764095766436,0.31576232,2957.2,2956.7,0.491]
[1764095766792,0.31576232,2957.2,2956.6,0.001]
[1764095766793,0.4874,2956.8,2956.6,0.001]
[1764095767020,0.2162,2956.7,2956.6,0.001]
[1764095767204,0.6815,2956.7,2956.6,0.001]
[1764095767407,4.37967472,2956.7,2956.6,0.001]
[1764095767728,5.83357425,2956.7,2956.6,0.001]
[1764095768292,5.10526883,2956.7,2956.6,0.001]
[1764095768730,4.63996883,2956.7,2956.6,0.001]
[1764095768933,4.63876883,2956.7,2956.6,0.001]
[1764095769727,5.12616883,2956.7,2956.6,0.001]
[1764095771010,5.18876883,2956.7,2956.6,0.001]
[1764095773332,12.07719883,2956.7,2956.6,0.001]
[1764095773632,12.10163322,2956.7,2956.6,0.001]
[1764095774133,18.70933522,2956.7,2956.6,0.001]
[1764095774431,8.62698722,2956.7,2956.6,0.001]
[1764095775003,7.96304122,2956.7,2956.6,0.001]
[1764095775324,9.79509622,2956.7,2956.6,0.001]
[1764095775524,8.32587022,2956.7,2956.6,0.001]
[1764095776208,11.54694622,2956.7,2956.6,0.001]
[1764095777222,6.32192522,2956.7,2956.6,0.001]
[1764095777504,15.79040822,2956.7,2956.6,0.001]
[1764095777707,11.89067222,2956.7,2956.6,0.001]
[1764095778326,14.65597522,2956.7,2956.6,0.001]
[1764095778537,19.23744511,2956.6,2956.5,0.001]
[1764095778729,20.83112321,2956.6,2956.5,0.001]
[1764095779036,6.91236013,2956.4,2956.3,0.001]
[1764095779240,31.46828766,2956.4,2956.3,0.001]
[1764095779559,11.82163045,2956.4,2956.3,0.001]
[1764095779837,11.88843045,2956.4,2956.3,0.001]
[1764095780406,11.16077806,2956.4,2956.3,0.001]
[1764095781130,11.15968465,2956.4,2956.3,0.001]
[1764095781532,11.56518865,2956.4,2956.3,0.001]
[1764095781710,30.78345009,2956.4,2956.3,0.001]
[1764095782112,30.39685904,2956.4,2956.3,0.001]
[1764095782337,17.63907704,2956.4,2956.3,0.001]
[1764095782549,22.34990064,2956.4,2956.3,0.001]
[1764095782851,27.14077164,2956.4,2956.3,0.001]
[1764095783642,27.14051689,2956.4,2956.3,0.001]
[1764095783844,35.10742789,2956.4,2956.3,0.001]
[1764095784141,29.86607989,2956.4,2956.3,0.001]
[1764095784850,33.84990989,2956.4,2956.3,0.001]
[1764095785206,30.18640589,2956.4,2956.3,0.001]
[1764095785936,12.09975329,2956.4,2956.3,0.001]
[1764095786311,14.53544429,2956.4,2956.3,0.001]
[1764095786744,14.94094829,2956.4,2956.3,0.001]
[1764095786939,17.23124333,2956.4,2956.3,0.001]
[1764095787351,12.50525729,2956.4,2956.3,0.001]
[1764095787513,10.09893579,2956.4,2956.3,0.001]
[1764095787707,10.8245299,2956.4,2956.3,0.001]
[1764095788216,10.09893579,2956.4,2956.3,0.001]
[1764095788611,10.09893579,2956.4,2956.3,0.4887]
[1764095788907,10.8245299,2956.4,2956.3,0.001]
[1764095789217,10.8761299,2956.4,2956.3,0.001]
[1764095789556,10.8245299,2956.4,2956.3,0.001]
[1764095789861,11.3702299,2956.4,2956.3,0.001]
[1764095790029,14.8610299,2956.4,2956.3,0.001]
[1764095790229,14.2860299,2956.4,2956.3,0.001]
[1764095790942,17.6302879,2956.4,2956.3,0.001]
[1764095791142,16.8490879,2956.4,2956.3,0.001]
[1764095792058,17.3294139,2956.4,2956.3,0.001]
[1764095792364,18.05820166,2956.4,2956.3,0.001]
[1764095793065,18.09507566,2956.4,2956.3,0.001]
[1764095793653,16.02417266,2956.4,2956.3,0.001]
[1764095793862,6.50344357,2956.4,2956.3,0.9581]
[1764095794066,6.71844357,2956.4,2956.3,0.9581]
[1764095794235,7.44403768,2956.4,2956.3,0.9581]
[1764095794564,10.8265299,2956.4,2956.3,0.9581]
[1764095794866,7.44403768,2956.4,2956.3,0.9581]
[1764095795078,10.8265299,2956.4,2956.3,0.9581]
[1764095795242,7.44403768,2956.4,2956.3,0.9581]
[1764095795870,0.002,2956.4,2956.3,4.34070663]
[1764095796047,0.002,2956.4,2956.3,0.9581]
[1764095796639,0.002,2956.4,2956.3,4.34070663]
[1764095798076,0.002,2956.4,2956.3,0.9581]
[1764095798269,0.002,2956.4,2956.3,4.34070663]
[1764095798463,0.002,2956.4,2956.3,0.9581]
[1764095798976,0.002,2956.4,2956.3,4.34070663]
[1764095799166,0.002,2956.4,2956.3,0.9581]
[1764095799577,0.31810383,2956.4,2956.3,0.9581]
[1764095800078,1.04369794,2956.4,2956.3,0.9581]
[1764095800790,0.31810383,2956.4,2956.3,0.9581]
[1764095800943,0.217,2956.4,2956.3,0.9581]
[1764095805492,3.59949222,2956.4,2956.3,0.4887]
[1764095805787,0.217,2956.4,2956.3,0.9581]
[1764095805990,0.002,2956.7,2956.3,0.9581]
[1764095806179,0.217,2956.7,2956.6,0.4877]
[1764095806579,0.217,2956.7,2956.6,0.9571]
[1764095808993,0.217,2956.7,2956.6,4.33936341]
[1764095809290,0.217,2956.7,2956.6,0.9571]
[1764095809683,0.217,2956.7,2956.6,4.33936341]
[1764095810286,0.217,2956.7,2956.6,0.9571]
[1764095810686,0.217,2956.7,2956.6,4.33936341]
[1764095811469,0.217,2956.7,2956.6,0.9571]
[1764095817200,0.217,2956.7,2956.6,4.33936341]
[1764095817405,0.217,2956.7,2956.6,0.9571]
[1764095818510,0.217,2956.7,2956.6,4.33936341]
[1764095818712,0.217,2956.7,2956.6,0.9571]
[1764095818894,0.217,2956.7,2956.6,4.33936341]
[1764095821528,0.002,2956.7,2956.6,0.9571]
[1764095821743,3.45514901,2956.7,2956.3,0.001]
[1764095821901,0.002,2956.7,2956.6,0.4638]
[1764095822103,3.7005967,2956.7,2956.6,0.4638]
[1764095822502,0.31844769,2956.7,2956.6,0.4638]
[1764095823520,3.7005967,2956.7,2956.6,0.4638]
[1764095823728,3.7005967,2956.7,2956.4,0.4551]
[1764095823922,0.31644769,2956.6,2956.4,0.4551]
[1764095824123,0.53198363,2956.5,2956.4,0.4551]
[1764095824319,0.60708363,2956.5,2956.3,0.001]
[1764095824530,0.31698363,2956.4,2956.3,0.001]
[1764095824749,0.32168363,2956.4,2956.3,0.001]
[1764095825238,0.215,2956.5,2956.3,0.001]
[1764095825239,0.215,2956.6,2956.3,0.9199]
[1764095825408,0.31708211,2956.5,2956.3,0.4561]
[1764095825605,0.215,2956.6,2956.5,0.4638]
[1764095825811,0.53207747,2956.6,2956.5,0.4638]
[1764095826037,0.53207747,2956.6,2956.5,0.9189]
[1764095826240,0.53207747,2956.6,2956.5,0.4638]
[1764095826416,0.53207747,2956.6,2956.4,0.001]
[1764095826612,0.31707747,2956.5,2956.4,0.001]
[1764095828643,3.69945528,2956.5,2956.4,0.001]
[1764095828940,4.24665528,2956.5,2956.4,0.001]
[1764095829109,3.77045528,2956.5,2956.4,0.001]
[1764095829315,0.38807747,2956.5,2956.4,0.001]
[1764095829515,3.77045528,2956.5,2956.4,0.001]
[1764095830148,11.13471541,2956.5,2956.4,0.001]
[1764095830346,15.32580975,2956.5,2956.4,0.001]
[1764095830550,12.27087975,2956.5,2956.4,0.001]
[1764095832343,12.77731762,2956.5,2956.4,0.001]
[1764095832536,11.86537575,2956.5,2956.4,0.001]
[1764095833402,12.08037575,2956.5,2956.4,0.001]
[1764095833671,29.45940231,2956.5,2956.4,0.001]
[1764095833820,25.74692831,2956.5,2956.4,0.001]
[1764095834456,24.53181033,2956.5,2956.4,0.001]
[1764095834677,1.13109811,2956.4,2956.3,0.001]
[1764095834847,1.23109811,2956.2,2956.1,0.001]
[1764095835147,1.23109811,2956.2,2956.0,0.001]
[1764095835148,23.94826871,2956.1,2956.0,0.001]
[1764095835444,25.69210652,2956.1,2956.0,0.001]
[1764095836548,29.98485868,2956.1,2956.0,0.001]
[1764095837320,29.60562412,2956.1,2956.0,0.001]
[1764095837814,30.51554079,2956.1,2956.0,0.001]
[1764095838257,30.61554079,2956.1,2956.0,0.001]
[1764095838459,29.70562412,2956.1,2956.0,0.001]
[1764095839363,19.33744511,2956.0,2955.9,0.001]
[1764095839573,19.33744511,2956.0,2953.9,0.191]
[1764095839574,0.72559411,2955.4,2953.9,0.191]
[1764095839733,1.66824181,2955.3,2954.4,0.4858]
[1764095839930,1.04773781,2955.2,2954.4,0.4858]
[1764095840133,0.31707747,2955.1,2954.4,0.4858]
[1764095840341,0.53207747,2955.1,2954.4,0.4858]
[1764095840671,0.72559411,2954.9,2954.4,0.4858]
[1764095841265,0.72559411,2954.9,2954.8,0.4908]
[1764095841483,0.72559411,2955.0,2954.8,0.4908]
[1764095841644,0.72559411,2955.0,2954.9,0.9418]
[1764095842265,0.94059411,2955.1,2954.9,0.9418]
[1764095842470,3.38376359,2955.3,2955.0,0.9418]
[1764095842661,0.1568,2955.9,2955.2,0.6773]
[1764095842855,3.59817883,2955.8,2955.7,0.001]
[1764095843059,3.91328583,2955.8,2955.7,0.001]
[1764095843460,1.3141,2956.3,2955.7,0.9428]
[1764095843461,0.6773,2956.3,2955.7,0.9428]
[1764095843644,7.29547734,2956.2,2955.8,0.4908]
[1764095843962,0.72559411,2956.1,2955.8,0.9418]
[1764095844165,0.72559411,2956.1,2955.7,0.001]
[1764095844532,0.469,2955.8,2955.7,0.001]
[1764095844761,4.79277294,2955.8,2955.7,0.001]
[1764095844932,5.10787864,2955.8,2955.7,0.001]
[1764095847376,5.10397864,2955.8,2955.7,0.001]
[1764095849873,5.18797864,2955.8,2955.7,0.001]
[1764095851077,14.36940764,2955.8,2955.7,0.001]
[1764095851371,10.55951374,2955.8,2955.7,0.001]